{"text_format":"3","workbook":"xlsx","n_sheets":4,"sheets":["Початок","Витрати","Прибуток","Зведення прибутку й збитків"],"not_rendered":{"charts":1},"read":"whole","date_system":"1900"}

{"sheet":"Початок","index":0,"n_rows":8,"n_cols":2,"rows_kept":8}
[null,"ПРО ЦЕЙ ШАБЛОН"]
[null,"Відстежуйте витрати на захід і отримані від нього прибутки за допомогою цієї книги планування."]
[null,"У таблиці на аркушах витрат і прибутків введіть назву заходу й укажіть відомості про нього."]
[null,"Загальні витрати та прибутки обчислюються автоматично."]
[null,"Діаграма та відомості про прибутки та збитки автоматично оновлюються на аркуші зведення."]
[null,"Примітка. "]
[null,"Додаткові вказівки наведено в стовпці A на кожному аркуші. Цей текст приховано навмисно. Щоб видалити текст, виберіть стовпець A й натисніть клавішу Delete. "]
[null,"Щоб дізнатися більше про таблицю, натисніть у ній клавіші Shift+F10, виберіть \"Таблиця\", а потім – \"Текст заміщення\"."]

{"sheet":"Витрати","index":1,"n_rows":32,"n_cols":8,"rows_kept":32,"merged":[[0,1,0,2],[0,3,0,4],[2,1,3,1]]}
["Введіть дані про орієнтовні та фактичні витрати за кожною категорією у відповідні таблиці цього аркуша, а також укажіть назву заходу в клітинці D1, щоб налаштувати заголовок цього й інших аркушів. Підзаголовок цього аркуша наведено в клітинці H1. Корисні вказівки щодо роботи з цим аркушем наведено в клітинках у цьому стовпці. Подальші вказівки наведено в клітинці A3.","Бюджет заходу",null,"Назва заходу",{"$nulls":3},"ВИТРАТИ"]
[]
["Надпис \"Загальні витрати\" наведено в клітинці праворуч, надпис \"Орієнтовно\" – у клітинці G3, а \"Фактично\" – у клітинці H3.","ЗАГАЛЬНІ ВИТРАТИ",{"$nulls":4},"Орієнтовно","Фактично"]
["Загальні орієнтовні витрати в клітинці G4 й загальні фактичні витрати в клітинці H4 обчислюються автоматично. Подальші вказівки наведено в клітинці A6.",{"$nulls":5},{"$f":"SUM(C11,C19,C25,C32,G11,G19,G24)","v":{"v":882,"d":"882.00 ₴"}},{"$f":"SUM(D11,D19,D25,D32,H11,H19,H24)","v":{"v":302,"d":"302.00 ₴"}}]
[]
["Суми витрат на місце проведення введіть у таблицю, починаючи з клітинки праворуч, а суми витрат на легкі закуски – у таблицю, починаючи з клітинки F6. Подальші вказівки наведено в клітинці A13.","Місце проведення","Орієнтовно","Фактично",null,"Легкі закуски","Орієнтовно","Фактично"]
[null,"Плата за користування кімнатою та залом",{"v":500,"d":"500.00 ₴"},null,null,"Страви"]
[null,"Співробітники на місці проведення",{"$nulls":3},"Напої",{"v":20,"d":"20.00 ₴"}]
[null,"Обладнання",{"$nulls":3},"Скатертини",null,{"v":20,"d":"20.00 ₴"}]
[null,"Столи та стільці",{"$nulls":3},"Персонал і чайові"]
[null,"Усього",{"$f":"SUBTOTAL(109,ВитратиНаМісцеПроведення[Орієнтовно])","v":{"v":500,"d":"500.00 ₴"}},{"$f":"SUBTOTAL(103,ВитратиНаМісцеПроведення[Фактично])","v":{"v":0,"d":"0.00 ₴"}},null,"Усього",{"$f":"SUBTOTAL(109,ВитратиНаЛегкіЗакуски[Орієнтовно])","v":{"v":20,"d":"20.00 ₴"}},{"$f":"SUBTOTAL(103,ВитратиНаЛегкіЗакуски[Фактично])","v":{"v":1,"d":"1.00 ₴"}}]
[]
["Суми витрат на прикраси введіть у таблицю, починаючи з клітинки праворуч, а суми витрат на програму – у таблицю, починаючи з клітинки F13. Подальші вказівки наведено в клітинці A21.","Прикраси","Орієнтовно","Фактично",null,"Програма","Орієнтовно","Фактично"]
[null,"Квіти",{"v":200,"d":"200.00 ₴"},{"v":300,"d":"300.00 ₴"},null,"Виконувачі"]
[null,"Свічки",{"$nulls":3},"Промовці",{"v":30,"d":"30.00 ₴"}]
[null,"Освітлення",{"$nulls":3},"Подорож"]
[null,"Повітряні кульки",{"$nulls":3},"Готель"]
[null,"Папір",{"$nulls":3},"Інше"]
[null,"Усього",{"$f":"SUBTOTAL(109,ВитратиНаПрикраси[Орієнтовно])","v":{"v":200,"d":"200.00 ₴"}},{"$f":"SUBTOTAL(109,ВитратиНаПрикраси[Фактично])","v":{"v":300,"d":"300.00 ₴"}},null,"Усього",{"$f":"SUBTOTAL(109,ВитратиНаПрограму[Орієнтовно])","v":{"v":30,"d":"30.00 ₴"}},{"$f":"SUBTOTAL(103,ВитратиНаПрограму[Фактично])","v":{"v":0,"d":"0.00 ₴"}}]
[]
["Суми витрат на рекламу введіть у таблицю, починаючи з клітинки праворуч, а суми витрат на призи – у таблицю, починаючи з клітинки F21. Подальші вказівки наведено в клітинці A27.","Реклама","Орієнтовно","Фактично",null,"Призи","Орієнтовно","Фактично"]
[null,"Графічні роботи",{"$nulls":3},"Стрічки/таблички/трофеї"]
[null,"Ксерокопіювання/друк",{"v":20,"d":"20.00 ₴"},null,null,"Подарунки",{"v":100,"d":"100.00 ₴"}]
[null,"Поштові витрати",{"$nulls":3},"Усього",{"$f":"SUBTOTAL(109,ВитратиНаПризи[Орієнтовно])","v":{"v":100,"d":"100.00 ₴"}},{"$f":"SUBTOTAL(103,ВитратиНаПризи[Фактично])","v":{"v":0,"d":"0.00 ₴"}}]
[null,"Усього",{"$f":"SUBTOTAL(109,ВитратиНаРекламу[Орієнтовно])","v":{"v":20,"d":"20.00 ₴"}},{"$f":"SUBTOTAL(103,ВитратиНаРекламу[Фактично])","v":{"v":0,"d":"0.00 ₴"}}]
[]
["Суми інших витрат введіть у таблицю, починаючи з клітинки праворуч.","Різне","Орієнтовно","Фактично"]
[null,"Телефон",null,{"v":13,"d":"13.00 ₴"}]
[null,"Транспорт",{"v":12,"d":"12.00 ₴"}]
[null,"Канцтовари"]
[null,"Послуги факсу"]
[null,"Усього",{"$f":"SUBTOTAL(109,ІншіВитрати[Орієнтовно])","v":{"v":12,"d":"12.00 ₴"}},{"$f":"SUBTOTAL(103,ІншіВитрати[Фактично])","v":{"v":1,"d":"1.00 ₴"}}]

{"sheet":"Прибуток","index":2,"n_rows":29,"n_cols":7,"rows_kept":29,"merged":[[0,1,0,2],[2,1,3,1]]}
["Введіть орієнтовні та фактичні прибутки з кожної категорії у відповідні таблиці цього аркуша. Заголовок аркуша автоматично оновлюється в клітинках праворуч. Підзаголовок наведено в клітинці G1. Корисні вказівки щодо роботи з цим аркушем наведено в клітинках у цьому стовпці. Подальші вказівки наведено в клітинці A3.",{"$f":"Витрати!B1","v":"Бюджет заходу"},null,{"$f":"Витрати!D1","v":"Назва заходу"},null,null,"ПРИБУТОК"]
[]
["Надпис \"Загальний прибуток\" наведено в клітинці праворуч, надпис \"Орієнтовно\" – у клітинці F3, а \"Фактично\" – у клітинці G3.","ЗАГАЛЬНИЙ ПРИБУТОК",{"$nulls":3},"Орієнтовно","Фактично"]
["Загальний орієнтовний прибуток автоматично обчислюється в клітинці F4, а загальний фактичний прибуток – у клітинці G4.",{"$nulls":4},{"$f":"SUM(Квитки[[#Totals],[Орієнтовний прибуток]],РекламніЛистівки[[#Totals],[Орієнтовний прибуток]],УчасникиВиставкиТаПостачальники[[#Totals],[Орієнтовний прибуток]],КількістьПроданихТоварів[[#Totals],[Орієнтовний прибуток]])","v":{"v":1936,"d":"1,936.00 ₴"}},{"$f":"SUM(Квитки[[#Totals],[Фактичний прибуток]],РекламніЛистівки[[#Totals],[Фактичний прибуток]],УчасникиВиставкиТаПостачальники[[#Totals],[Фактичний прибуток]],КількістьПроданихТоварів[[#Totals],[Фактичний прибуток]])","v":{"v":1831,"d":"1,831.00 ₴"}}]
["Надпис \"Квитки\" наведено в клітинці праворуч.","КВИТКИ"]
["Введіть орієнтовну й фактичну кількість квитків і їхню вартість у таблицю, починаючи з клітинки праворуч. Орієнтовний і фактичний прибуток від збуту квитків обчислюється автоматично. Подальші вказівки наведено в клітинці A11.","Орієнтовна кількість","Фактична кількість","Тип","Ціна","Орієнтовний прибуток","Фактичний прибуток"]
[null,300,278,"Дорослі @",{"v":5,"d":"5.00 ₴"},{"$f":"B7*E7","v":{"v":1500,"d":"1,500.00 ₴"}},{"$f":"C7*E7","v":{"v":1390,"d":"1,390.00 ₴"}}]
[null,197,195,"Діти @",{"v":2,"d":"2.00 ₴"},{"$f":"B8*E8","v":{"v":394,"d":"394.00 ₴"}},{"$f":"C8*E8","v":{"v":390,"d":"390.00 ₴"}}]
[null,42,51,"Інші @",{"v":1,"d":"1.00 ₴"},{"$f":"B9*E9","v":{"v":42,"d":"42.00 ₴"}},{"$f":"C9*E9","v":{"v":51,"d":"51.00 ₴"}}]
[null,"Усього",{"$nulls":3},{"$f":"SUBTOTAL(109,Квитки[Орієнтовний прибуток])","v":{"v":1936,"d":"1,936.00 ₴"}},{"$f":"SUBTOTAL(109,Квитки[Фактичний прибуток])","v":{"v":1831,"d":"1,831.00 ₴"}}]
["Надпис \"Рекламні листівки\" наведено в клітинці праворуч.","РЕКЛАМНІ ЛИСТІВКИ"]
["Введіть орієнтовну й фактичну кількість рекламних листівок і їхню вартість у таблицю, починаючи з клітинки праворуч. Орієнтовний і фактичний прибуток від реклами обчислюється автоматично. Подальші вказівки наведено в клітинці A17.","Орієнтовна кількість","Фактична кількість","Тип","Ціна","Орієнтовний прибуток","Фактичний прибуток"]
[null,12,null,"Титульні сторінки @",null,{"$f":"B13*E13","v":{"v":0,"d":"0.00 ₴"}},{"$f":"C13*E13","v":{"v":0,"d":"0.00 ₴"}}]
[null,null,158,"На половину сторінки @",null,{"$f":"B14*E14","v":{"v":0,"d":"0.00 ₴"}},{"$f":"C14*E14","v":{"v":0,"d":"0.00 ₴"}}]
[null,4,null,"На чверть сторінки @",null,{"$f":"B15*E15","v":{"v":0,"d":"0.00 ₴"}},{"$f":"C15*E15","v":{"v":0,"d":"0.00 ₴"}}]
[null,"Усього",{"$nulls":3},{"$f":"SUBTOTAL(109,РекламніЛистівки[Орієнтовний прибуток])","v":{"v":0,"d":"0.00 ₴"}},{"$f":"SUBTOTAL(109,РекламніЛистівки[Фактичний прибуток])","v":{"v":0,"d":"0.00 ₴"}}]
["Надпис \"Учасники виставки або постачальники\" наведено в клітинці праворуч.","УЧАСНИКИ ВИСТАВКИ / ПОСТАЧАЛЬНИКИ"]
["Введіть орієнтовну й фактичну кількість учасників виставки, постачальників, а також кількість і вартість стендів у таблицю, починаючи з клітинки праворуч. Орієнтовний і фактичний прибуток обчислюється автоматично. Подальші вказівки наведено в клітинці A23.","Орієнтовна кількість","Фактична кількість","Тип","Ціна","Орієнтовний прибуток","Фактичний прибуток"]
[null,23,null,"Великі стенди @",null,{"$f":"B19*E19","v":{"v":0,"d":"0.00 ₴"}},{"$f":"C19*E19","v":{"v":0,"d":"0.00 ₴"}}]
[null,354,null,"Середні стенди @",null,{"$f":"B20*E20","v":{"v":0,"d":"0.00 ₴"}},{"$f":"C20*E20","v":{"v":0,"d":"0.00 ₴"}}]
[null,56,null,"Малі стенди @",null,{"$f":"B21*E21","v":{"v":0,"d":"0.00 ₴"}},{"$f":"C21*E21","v":{"v":0,"d":"0.00 ₴"}}]
[null,"Усього",{"$nulls":3},{"$f":"SUBTOTAL(109,УчасникиВиставкиТаПостачальники[Орієнтовний прибуток])","v":{"v":0,"d":"0.00 ₴"}},{"$f":"SUBTOTAL(109,УчасникиВиставкиТаПостачальники[Фактичний прибуток])","v":{"v":0,"d":"0.00 ₴"}}]
["Надпис \"Кількість проданих товарів\" наведено в клітинці праворуч.","КІЛЬКІСТЬ ПРОДАНИХ ТОВАРІВ"]
["Введіть орієнтовну й фактичну кількість проданих товарів і їхню ціну в таблицю, починаючи з клітинки праворуч. Орієнтовний і фактичний прибуток обчислюється автоматично.","Орієнтовна кількість","Фактична кількість","Тип","Ціна","Орієнтовний прибуток","Фактичний прибуток"]
[{"$nulls":3},"Елементи @",null,{"$f":"B25*E25","v":{"v":0,"d":"0.00 ₴"}},{"$f":"C25*E25","v":{"v":0,"d":"0.00 ₴"}}]
[null,123,null,"Елементи @",null,{"$f":"B26*E26","v":{"v":0,"d":"0.00 ₴"}},{"$f":"C26*E26","v":{"v":0,"d":"0.00 ₴"}}]
[{"$nulls":3},"Елементи @",null,{"$f":"B27*E27","v":{"v":0,"d":"0.00 ₴"}},{"$f":"C27*E27","v":{"v":0,"d":"0.00 ₴"}}]
[null,13,null,"Елементи @",null,{"$f":"B28*E28","v":{"v":0,"d":"0.00 ₴"}},{"$f":"C28*E28","v":{"v":0,"d":"0.00 ₴"}}]
[null,"Усього",{"$nulls":3},{"$f":"SUBTOTAL(109,КількістьПроданихТоварів[Орієнтовний прибуток])","v":{"v":0,"d":"0.00 ₴"}},{"$f":"SUBTOTAL(109,КількістьПроданихТоварів[Фактичний прибуток])","v":{"v":0,"d":"0.00 ₴"}}]

{"sheet":"Зведення прибутку й збитків","index":3,"n_rows":8,"n_cols":7,"rows_kept":8,"merged":[[0,1,0,2]]}
["Зведення прибутків і збитків, а також діаграма відомостей про загальні показники автоматично оновлюються на цьому аркуші. Заголовок аркуша автоматично оновлюється в клітинках праворуч. Підзаголовок наведено в клітинках G1 і G2. Корисні вказівки щодо роботи з цим аркушем наведено в клітинках у цьому стовпці. Подальші вказівки наведено в клітинці A3.",{"$f":"Витрати!B1","v":"Бюджет заходу"},null,{"$f":"Витрати!D1","v":"Назва заходу"},null,null,"ДОХІД "]
[{"$nulls":6},"Зведення збитків"]
["Гістограму порівняння орієнтовних і фактичних прибутків і витрат наведено в клітинці E3.",{"$nulls":3},"У цій клітинці наведено гістограму порівняння орієнтовного та фактичного прибутку й витрат."]
["Таблиця зведення, що починається в клітинці справа, оновлюється автоматично. Подальші вказівки наведено в клітинці A8."," Усього","Орієнтовно","Фактично"]
[null,"Загальний прибуток",{"$f":"Прибуток!F10","v":{"v":1936,"d":"1,936.00 ₴"}},{"$f":"Прибуток!F4","v":{"v":1936,"d":"1,936.00 ₴"}}]
[null,"Загальні витрати",{"$f":"Витрати!G4","v":{"v":882,"d":"882.00 ₴"}},{"$f":"Витрати!H4","v":{"v":302,"d":"302.00 ₴"}}]
[]
["Загальні орієнтовні прибутки або витрати автоматично обчислюються в клітинці С8, а загальні фактичні прибутки або витрати – у клітинці D8.","Загальний прибуток\n(або втрати)",{"$f":"C5-C6","v":{"v":1054,"d":"1,054.00 ₴"}},{"$f":"D5-D6","v":{"v":1634,"d":"1,634.00 ₴"}}]